Workbook

Sheet Sheet1
B1: 2018年中南大学机电工程学院硕士研究生复试结果情况表（未录取）
A3: 排名 | B3: 姓名 | C3: 思想政治 | D3: 英语 | E3: 数学 | F3: 机械设计 | G3: 初试总分 | K3: 英语复试成绩 | Q3: 专业复试成绩 | S3: 复试总分 | T3: 总分 | V3: 录取 | W3: 备注
H4: 考官1 | I4: 考官2 | J4: 考官3 | L4: 考官1 | M4: 考官2 | N4: 考官3 | O4: 考官4 | P4: 考官5 | Q4: 专业面试成绩 | R4: 专业考试成绩 | U4: 政治思想考核
A5: 1 | B5: 刘庆豪 | C5: 63 | D5: 64 | E5: 85 | F5: 137 | G5: 349 | H5: 84 | I5: 80 | J5: 81 | K5: =AVERAGE(H5:J5) -> 81.7 | L5: 78 | M5: 91 | N5: 85 | O5: 79 | P5: 79 | Q5: =AVERAGE(L5:P5) -> 82.4 | R5: 216 | S5: =SUM(K5,Q5,R5) -> 380.1 | T5: =SUM(G5,S5) -> 729.1 | U5: 合格 | V5: 未录取
A6: 2 | B6: 王宁 | C6: 67 | D6: 66 | E6: 91 | F6: 135 | G6: 359 | H6: 85 | I6: 80 | J6: 81 | K6: 82.0 | L6: 84 | M6: 85 | N6: 87 | O6: 83 | P6: 84 | Q6: 84.6 | R6: 202 | S6: 368.6 | T6: 727.6 | U6: 合格 | V6: 未录取
A7: 3 | B7: 田玉祥 | C7: 65 | D7: 61 | E7: 92 | F7: 135 | G7: 353 | H7: 85 | I7: 86 | J7: 85 | K7: 85.3 | L7: 85 | M7: 85 | N7: 88 | O7: 90 | P7: 89 | Q7: 87.4 | R7: 200 | S7: 372.7 | T7: 725.7 | U7: 合格 | V7: 未录取
A8: 4 | B8: 张棋翔 | C8: 69 | D8: 74 | E8: 71 | F8: 131 | G8: 345 | H8: 88 | I8: 88 | J8: 82 | K8: 86.0 | L8: 86 | M8: 85 | N8: 84 | O8: 85 | P8: 85 | Q8: 85.0 | R8: 204 | S8: 375.0 | T8: 720.0 | U8: 合格 | V8: 未录取
A9: 5 | B9: 王辉 | C9: 68 | D9: 68 | E9: 108 | F9: 129 | G9: 373 | H9: 89 | I9: 90 | J9: 86 | K9: 88.3 | L9: 84 | M9: 83 | N9: 86 | O9: 83 | P9: 84 | Q9: 84.0 | R9: 170 | S9: 342.3 | T9: 715.3 | U9: 合格 | V9: 未录取
A10: 6 | B10: 朱晓宁 | C10: 70 | D10: 58 | E10: 91 | F10: 128 | G10: 347 | H10: 85 | I10: 86 | J10: 86 | K10: 85.7 | L10: 87 | M10: 90 | N10: 89 | O10: 87 | P10: 90 | Q10: 88.6 | R10: 184 | S10: 358.3 | T10: 705.3 | U10: 合格 | V10: 未录取
A11: 7 | B11: 田振 | C11: 64 | D11: 52 | E11: 92 | F11: 137 | G11: 345 | H11: 80 | I11: 80 | J11: 80 | K11: 80.0 | L11: 88 | M11: 88 | N11: 89 | O11: 90 | P11: 88 | Q11: 88.6 | R11: 190 | S11: 358.6 | T11: 703.6 | U11: 合格 | V11: 未录取
A12: 8 | B12: 王鑫鑫 | C12: 63 | D12: 60 | E12: 106 | F12: 130 | G12: 359 | H12: 90 | I12: 90 | J12: 88 | K12: 89.3 | L12: 90 | M12: 93 | N12: 92 | O12: 92 | P12: 92 | Q12: 91.8 | R12: 163 | S12: 344.1 | T12: 703.1 | U12: 合格 | V12: 未录取
A13: 9 | B13: 高梦圆 | C13: 51 | D13: 52 | E13: 102 | F13: 138 | G13: 343 | H13: 85 | I13: 85 | J13: 85 | K13: 85.0 | L13: 80 | M13: 78 | N13: 80 | O13: 81 | P13: 78 | Q13: 79.4 | R13: 195 | S13: 359.4 | T13: 702.4 | U13: 合格 | V13: 未录取
A14: 10 | B14: 蔡源 | C14: 66 | D14: 49 | E14: 92 | F14: 129 | G14: 336 | H14: 88 | I14: 90 | J14: 90 | K14: 89.3 | L14: 88 | M14: 89 | N14: 93 | O14: 89 | P14: 88 | Q14: 89.4 | R14: 183 | S14: 361.7 | T14: 697.7 | U14: 合格 | V14: 未录取
A15: 11 | B15: 姚华辉 | C15: 69 | D15: 62 | E15: 107 | F15: 121 | G15: 359 | H15: 87 | I15: 85 | J15: 86 | K15: 86.0 | L15: 88 | M15: 88 | N15: 85 | O15: 84 | P15: 82 | Q15: 85.4 | R15: 166 | S15: 337.4 | T15: 696.4 | U15: 合格 | V15: 未录取
A16: 12 | B16: 廖明 | C16: 65 | D16: 61 | E16: 112 | F16: 127 | G16: 365 | H16: 88 | I16: 90 | J16: 84 | K16: 87.3 | L16: 88 | M16: 88 | N16: 89 | O16: 89 | P16: 88 | Q16: 88.4 | R16: 152 | S16: 327.7 | T16: 692.7 | U16: 合格 | V16: 未录取
A17: 13 | B17: 张泽 | C17: 60 | D17: 61 | E17: 113 | F17: 114 | G17: 348 | H17: 84 | I17: 82 | J17: 85 | K17: 83.7 | L17: 87 | M17: 83 | N17: 88 | O17: 86 | P17: 87 | Q17: 86.2 | R17: 173 | S17: 342.9 | T17: 690.9 | U17: 合格 | V17: 未录取
A18: 14 | B18: 李晓栋 | C18: 67 | D18: 59 | E18: 97 | F18: 129 | G18: 352 | H18: 86 | I18: 86 | J18: 87 | K18: 86.3 | L18: 80 | M18: 92 | N18: 80 | O18: 81 | P18: 80 | Q18: 82.6 | R18: 168 | S18: 336.9 | T18: 688.9 | U18: 合格 | V18: 未录取
A19: 15 | B19: 李朗 | C19: 56 | D19: 61 | E19: 90 | F19: 142 | G19: 349 | H19: 81 | I19: 83 | J19: 80 | K19: 81.3 | L19: 87 | M19: 88 | N19: 84 | O19: 86 | P19: 85 | Q19: 86.0 | R19: 170 | S19: 337.3 | T19: 686.3 | U19: 合格 | V19: 未录取
A20: 16 | B20: 王哲 | C20: 65 | D20: 61 | E20: 74 | F20: 132 | G20: 332 | H20: 80 | I20: 82 | J20: 85 | K20: 82.3 | L20: 85 | M20: 86 | N20: 82 | O20: 83 | P20: 85 | Q20: 84.2 | R20: 187 | S20: 353.5 | T20: 685.5 | U20: 合格 | V20: 未录取
A21: 17 | B21: 谢昌霖 | C21: 70 | D21: 62 | E21: 90 | F21: 125 | G21: 347 | H21: 80 | I21: 86 | J21: 84 | K21: 83.3 | L21: 80 | M21: 81 | N21: 80 | O21: 82 | P21: 85 | Q21: 81.6 | R21: 168 | S21: 332.9 | T21: 679.9 | U21: 合格 | V21: 未录取
A22: 18 | B22: 张聪悦 | C22: 67 | D22: 63 | E22: 86 | F22: 126 | G22: 342 | H22: 85 | I22: 83 | J22: 83 | K22: 83.7 | L22: 83 | M22: 90 | N22: 95 | O22: 82 | P22: 82 | Q22: 86.4 | R22: 165 | S22: 335.1 | T22: 677.1 | U22: 合格 | V22: 未录取
A23: 19 | B23: 李军 | C23: 63 | D23: 47 | E23: 99 | F23: 134 | G23: 343 | H23: 90 | I23: 90 | J23: 90 | K23: 90.0 | L23: 96 | M23: 95 | N23: 90 | O23: 90 | P23: 90 | Q23: 92.2 | R23: 150 | S23: 332.2 | T23: 675.2 | U23: 合格 | V23: 未录取
A24: 20 | B24: 汤湘杰 | C24: 64 | D24: 50 | E24: 100 | F24: 125 | G24: 339 | H24: 88 | I24: 88 | J24: 86 | K24: 87.3 | L24: 90 | M24: 93 | N24: 89 | O24: 92 | P24: 89 | Q24: 90.6 | R24: 152 | S24: 329.9 | T24: 668.9 | U24: 合格 | V24: 未录取
A25: 21 | B25: 袁运飞 | C25: 68 | D25: 59 | E25: 103 | F25: 121 | G25: 351 | H25: 89 | I25: 86 | J25: 81 | K25: 85.3 | L25: 85 | M25: 83 | N25: 84 | O25: 82 | P25: 85 | Q25: 83.8 | R25: 148 | S25: 317.1 | T25: 668.1 | U25: 合格 | V25: 未录取
A26: 22 | B26: 周旺旺 | C26: 65 | D26: 50 | E26: 80 | F26: 136 | G26: 331 | H26: 80 | I26: 81 | J26: 80 | K26: 80.3 | L26: 80 | M26: 88 | N26: 93 | O26: 90 | P26: 89 | Q26: 88.0 | R26: 159 | S26: 327.3 | T26: 658.3 | U26: 合格 | V26: 未录取
A27: 23 | B27: 文磊 | C27: 69 | D27: 65 | E27: 77 | F27: 138 | G27: 349 | H27: 84 | I27: 85 | J27: 83 | K27: 84.0 | L27: 88 | M27: 92 | N27: 90 | O27: 93 | P27: 88 | Q27: 90.2 | R27: 122 | S27: 296.2 | T27: 645.2 | U27: 合格 | V27: 未录取
A28: 24 | B28: 尹涛 | C28: 70 | D28: 52 | E28: 75 | F28: 135 | G28: 332 | H28: 80 | I28: 81 | J28: 80 | K28: 80.3 | L28: 80 | M28: 81 | N28: 80 | O28: 80 | P28: 80 | Q28: 80.2 | R28: 149 | S28: 309.5 | T28: 641.5 | U28: 合格 | V28: 未录取
A29: 25 | B29: 杨金生 | C29: 62 | D29: 73 | E29: 78 | F29: 130 | G29: 343 | H29: 83 | I29: 85 | J29: 86 | K29: 84.7 | L29: 90 | M29: 85 | N29: 80 | O29: 81 | P29: 85 | Q29: 84.2 | R29: 123 | S29: 291.9 | T29: 634.9 | U29: 合格 | V29: 未录取
A30: 26 | B30: 任蒙飞 | C30: 68 | D30: 61 | E30: 81 | F30: 137 | G30: 347 | H30: 81 | I30: 85 | J30: 80 | K30: 82.0 | L30: 90 | M30: 83 | N30: 85 | O30: 91 | P30: 90 | Q30: 87.8 | R30: 115 | S30: 284.8 | T30: 631.8 | U30: 合格 | V30: 未录取
A31: 27 | B31: 王沛超 | C31: 64 | D31: 67 | E31: 95 | F31: 113 | G31: 339 | H31: 87 | I31: 86 | J31: 85 | K31: 86.0 | L31: 87 | M31: 85 | N31: 80 | O31: 82 | P31: 87 | Q31: 84.2 | R31: 121 | S31: 291.2 | T31: 630.2 | U31: 合格 | V31: 未录取
A32: 28 | B32: 王博文 | C32: 59 | D32: 63 | E32: 97 | F32: 103 | G32: 322 | H32: 80 | I32: 85 | J32: 83 | K32: 82.7 | L32: 86 | M32: 86 | N32: 89 | O32: 87 | P32: 89 | Q32: 87.4 | R32: 136 | S32: 306.1 | T32: 628.1 | U32: 合格 | V32: 未录取
A33: 29 | B33: 赖超 | C33: 61 | D33: 55 | E33: 100 | F33: 96 | G33: 312 | H33: 82 | I33: 78 | J33: 80 | K33: 80.0 | L33: 75 | M33: 75 | N33: 80 | O33: 80 | P33: 80 | Q33: 78.0 | R33: 153 | S33: 311.0 | T33: 623.0 | U33: 合格 | V33: 未录取
A34: 30 | B34: 陈仕杰 | C34: 62 | D34: 62 | E34: 82 | F34: 128 | G34: 334 | H34: 86 | I34: 87 | J34: 88 | K34: 87.0 | L34: 70 | M34: 79 | N34: 75 | O34: 70 | P34: 70 | Q34: 72.8 | R34: 129 | S34: 288.8 | T34: 622.8 | U34: 合格 | V34: 未录取
A35: 31 | B35: 王珣晓 | C35: 60 | D35: 67 | E35: 83 | F35: 123 | G35: 333 | H35: 81 | I35: 82 | J35: 81 | K35: 81.3 | L35: 80 | M35: 78 | N35: 82 | O35: 77 | P35: 82 | Q35: 79.8 | R35: 115 | S35: 276.1 | T35: 609.1 | U35: 合格 | V35: 未录取
A36: 32 | B36: 于少龙 | C36: 65 | D36: 53 | E36: 96 | F36: 129 | G36: 343 | H36: 93 | I36: 94 | J36: 94 | K36: 93.7 | L36: 93 | M36: 94 | N36: 95 | O36: 94 | P36: 90 | Q36: 93.2 | R36: 66 | S36: 252.9 | T36: 595.9 | U36: 合格 | V36: 未录取
A37: 33 | B37: 张烨 | C37: 61 | D37: 61 | E37: 75 | F37: 126 | G37: 323 | H37: 85 | I37: 85 | J37: 85 | K37: 85.0 | L37: 88 | M37: 90 | N37: 92 | O37: 85 | P37: 89 | Q37: 88.8 | R37: 97 | S37: 270.8 | T37: 593.8 | U37: 合格 | V37: 未录取
A38: 34 | B38: 李泳 | C38: 67 | D38: 68 | E38: 83 | F38: 112 | G38: 330 | H38: 80 | I38: 80 | J38: 81 | K38: 80.3 | L38: 84 | M38: 84 | N38: 84 | O38: 83 | P38: 80 | Q38: 83.0 | R38: 64 | S38: 227.3 | T38: 557.3 | U38: 合格 | V38: 未录取
A39: 35 | B39: 彭清 | C39: 64 | D39: 66 | E39: 77 | F39: 130 | G39: 337 | H39: 85 | I39: 82 | J39: 84 | K39: 83.7 | L39: 86 | M39: 85 | N39: 85 | O39: 84 | P39: 85 | Q39: 85.0 | R39: 18 | S39: 186.7 | T39: 523.7 | U39: 合格 | V39: 未录取
A40: 36 | B40: 林顺天 | C40: 59 | D40: 58 | E40: 75 | F40: 128 | G40: 320 | R40: 190 | S40: 190.0 | T40: 510.0 | V40: 未录取
A41: 37 | B41: 冯尔鹏 | C41: 61 | D41: 57 | E41: 96 | F41: 142 | G41: 356 | R41: 142 | S41: =SUM(K41,Q41,R41) -> 142.0 | T41: 498.0 | V41: 未录取
A42: 38 | B42: 周晨 | C42: 63 | D42: 70 | E42: 85 | F42: 100 | G42: 318 | R42: 149 | S42: 149.0 | T42: 467.0 | V42: 未录取
A43: 39 | B43: 寇成志 | C43: 61 | D43: 51 | E43: 71 | F43: 123 | G43: 306 | T43: 306.0 | V43: 放弃
A44: 40 | B44: 周梦松 | C44: 56 | D44: 53 | E44: 70 | F44: 128 | G44: 307 | T44: 307.0 | V44: 放弃
A45: 41 | B45: 姚婉 | C45: 59 | D45: 62 | E45: 70 | F45: 116 | G45: 307 | T45: 307.0 | V45: 放弃
A46: 42 | B46: 黄明勤 | C46: 74 | D46: 68 | E46: 74 | F46: 91 | G46: 307 | T46: 307.0 | V46: 放弃
A47: 43 | B47: 贺少杰 | C47: 61 | D47: 50 | E47: 79 | F47: 119 | G47: 309 | T47: 309.0 | V47: 放弃
A48: 44 | B48: 杨孝峰 | C48: 68 | D48: 57 | E48: 70 | F48: 114 | G48: 309 | T48: 309.0 | V48: 放弃
A49: 45 | B49: 荀舟 | C49: 62 | D49: 45 | E49: 76 | F49: 129 | G49: 312 | T49: 312.0 | V49: 放弃
A50: 46 | B50: 曹睿 | C50: 59 | D50: 49 | E50: 95 | F50: 110 | G50: 313 | T50: 313.0 | V50: 放弃
A51: 47 | B51: 罗东阳 | C51: 64 | D51: 49 | E51: 80 | F51: 121 | G51: 314 | T51: 314.0 | V51: 放弃
A52: 48 | B52: 张禹 | C52: 73 | D52: 51 | E52: 77 | F52: 114 | G52: 315 | T52: 315.0 | V52: 放弃
A53: 49 | B53: 王效禹 | C53: 62 | D53: 57 | E53: 74 | F53: 122 | G53: 315 | T53: 315.0 | V53: 放弃
A54: 50 | B54: 王猛 | C54: 60 | D54: 45 | E54: 83 | F54: 127 | G54: 315 | T54: 315.0 | V54: 放弃
A55: 51 | B55: 杨亮鸿 | C55: 68 | D55: 56 | E55: 80 | F55: 112 | G55: 316 | T55: 316.0 | V55: 放弃
A56: 52 | B56: 田强 | C56: 61 | D56: 66 | E56: 80 | F56: 114 | G56: 321 | T56: 321.0 | V56: 放弃
A57: 53 | B57: 白欢 | C57: 60 | D57: 51 | E57: 83 | F57: 128 | G57: 322 | T57: 322.0 | V57: 放弃
A58: 54 | B58: 唐超 | C58: 67 | D58: 66 | E58: 70 | F58: 121 | G58: 324 | T58: 324.0 | V58: 放弃
A59: 55 | B59: 杨子豪 | C59: 68 | D59: 68 | E59: 70 | F59: 119 | G59: 325 | T59: 325.0 | V59: 放弃
A60: 56 | B60: 赵玲丽 | C60: 62 | D60: 62 | E60: 81 | F60: 122 | G60: 327 | T60: 327.0 | V60: 放弃
A61: 57 | B61: 吴冰帆 | C61: 70 | D61: 69 | E61: 70 | F61: 119 | G61: 328 | T61: 328.0 | V61: 放弃
A62: 58 | B62: 张宇欣 | C62: 65 | D62: 59 | E62: 86 | F62: 119 | G62: 329 | T62: 329.0 | V62: 放弃
A63: 59 | B63: 吕衡生 | C63: 65 | D63: 58 | E63: 79 | F63: 130 | G63: 332 | T63: 332.0 | V63: 放弃
A64: 60 | B64: 郝飒 | C64: 56 | D64: 48 | E64: 106 | F64: 123 | G64: 333 | T64: 333.0 | V64: 放弃
A65: 61 | B65: 欧阳思敏 | C65: 64 | D65: 69 | E65: 89 | F65: 111 | G65: 333 | T65: 333.0 | V65: 放弃
A66: 62 | B66: 彭小明 | C66: 65 | D66: 52 | E66: 88 | F66: 129 | G66: 334 | T66: 334.0 | V66: 放弃
A67: 63 | B67: 张琰 | C67: 58 | D67: 64 | E67: 95 | F67: 119 | G67: 336 | T67: 336.0 | V67: 放弃
A68: 64 | B68: 丁玉栋 | C68: 65 | D68: 54 | E68: 87 | F68: 133 | G68: 339 | T68: 339.0 | V68: 放弃
A69: 65 | B69: 曹发祥 | C69: 66 | D69: 60 | E69: 90 | F69: 125 | G69: 341 | T69: =SUM(G69,S69) -> 341.0 | V69: 放弃
A70: 66 | B70: 邓权 | C70: 64 | D70: 64 | E70: 85 | F70: 129 | G70: 342 | T70: 342.0 | V70: 放弃
A71: 67 | B71: 熊胜 | C71: 64 | D71: 63 | E71: 97 | F71: 120 | G71: 344 | T71: 344.0 | V71: 放弃
A72: 68 | B72: 于凤书 | C72: 64 | D72: 66 | E72: 86 | F72: 133 | G72: 349 | T72: 349.0 | V72: 放弃
A73: 69 | B73: 周顺 | C73: 73 | D73: 55 | E73: 97 | F73: 126 | G73: 351 | T73: 351.0 | V73: 放弃
A74: 70 | B74: 胡志强 | C74: 63 | D74: 76 | E74: 89 | F74: 123 | G74: 351 | T74: 351.0 | V74: 放弃
A75: 71 | B75: 李坚 | C75: 54 | D75: 74 | E75: 98 | F75: 126 | G75: 352 | T75: 352.0 | V75: 放弃
A76: 72 | B76: 欧志刚 | C76: 72 | D76: 58 | E76: 92 | F76: 131 | G76: 353 | T76: =SUM(G76,S76) -> 353.0 | V76: 放弃
A77: 73 | B77: 周孔涛 | C77: 72 | D77: 68 | E77: 95 | F77: 120 | G77: 355 | T77: 355.0 | V77: 放弃
A78: 74 | B78: 张顺 | C78: 68 | D78: 56 | E78: 104 | F78: 129 | G78: 357 | T78: 357.0 | V78: 放弃
A79: 75 | B79: 申煜玺 | C79: 58 | D79: 62 | E79: 104 | F79: 142 | G79: 366 | T79: 366.0 | V79: 放弃
A80: 76 | B80: 陈孟 | C80: 73 | D80: 70 | E80: 94 | F80: 129 | G80: 366 | T80: 366.0 | V80: 放弃
A81: 77 | B81: 夏凯 | C81: 72 | D81: 62 | E81: 102 | F81: 132 | G81: 368 | T81: 368.0 | V81: 放弃
A82: 78 | B82: 王志豪 | C82: 67 | D82: 68 | E82: 102 | F82: 136 | G82: 373 | T82: 373.0 | V82: 放弃
A83: 79 | B83: 张守锋 | C83: 67 | D83: 70 | E83: 103 | F83: 133 | G83: 373 | T83: 373.0 | V83: 放弃
A85: 80 | B85: 胡湘宇 | C85: 68 | D85: 79 | E85: 94 | F85: 90 | G85: 331 | H85: 75 | I85: 76 | J85: 75 | K85: =AVERAGE(H85:J85) -> 75.33333333 | L85: 82 | M85: 83 | N85: 85 | O85: 85 | P85: 82 | Q85: =AVERAGE(L85:P85) -> 83.4 | R85: 146 | S85: =SUM(K85,Q85,R85) -> 304.7333333 | T85: =G85+K85+Q85+R85 -> 635.7333333 | U85: 合格 | V85: 未录取 | W85: 车辆工程
A86: 81 | B86: 危奕名 | C86: 68 | D86: 63 | E86: 97 | F86: 143 | G86: 371 | H86: 85 | I86: 81 | J86: 82 | K86: =AVERAGE(H86:J86) -> 82.66666667 | L86: 85 | M86: 82 | N86: 87 | O86: 82 | P86: 83 | Q86: =AVERAGE(L86:P86) -> 83.8 | R86: 195 | S86: =SUM(K86,Q86,R86) -> 361.4666667 | T86: =G86+K86+Q86+R86 -> 732.4666667 | U86: 合格 | V86: 未录取
A87: 82 | B87: 姜雪鹏 | C87: 69 | D87: 71 | E87: 98 | F87: 131 | G87: 369 | H87: 85 | I87: 86 | J87: 85 | K87: 85.33333333 | L87: 85 | M87: 83 | N87: 84 | O87: 81 | P87: 82 | Q87: 83 | R87: 194 | S87: 362.3333333 | T87: 731.3333333 | U87: 合格 | V87: 未录取
A88: 83 | B88: 陈志高 | C88: 69 | D88: 68 | E88: 92 | F88: 132 | G88: 361 | H88: 76 | I88: 75 | J88: 75 | K88: 75.33333333 | L88: 80 | M88: 87 | N88: 85 | O88: 86 | P88: 80 | Q88: 83.6 | R88: 210 | S88: 368.9333333 | T88: 729.9333333 | U88: 合格 | V88: 未录取
A89: 84 | B89: 张慧平 | C89: 69 | D89: 82 | E89: 85 | F89: 116 | G89: 352 | H89: 83 | I89: 82 | J89: 81 | K89: 82 | L89: 88 | M89: 90 | N89: 85 | O89: 90 | P89: 86 | Q89: 87.8 | R89: 206 | S89: 375.8 | T89: 727.8 | U89: 合格 | V89: 未录取
A90: 85 | B90: 李晓萱 | C90: 65 | D90: 81 | E90: 103 | F90: 106 | G90: 355 | H90: 95 | I90: 94 | J90: 90 | K90: 93 | L90: 91 | M90: 92 | N90: 90 | O90: 92 | P90: 90 | Q90: 91 | R90: 188 | S90: 372 | T90: 727 | U90: 合格 | V90: 未录取
A91: 86 | B91: 陈梦喜 | C91: 71 | D91: 67 | E91: 85 | F91: 132 | G91: 355 | H91: 96 | I91: 88 | J91: 92 | K91: 92 | L91: 95 | M91: 93 | N91: 90 | O91: 94 | P91: 95 | Q91: 93.4 | R91: 186 | S91: 371.4 | T91: 726.4 | U91: 合格 | V91: 未录取
A92: 87 | B92: 陈鹏飞 | C92: 74 | D92: 59 | E92: 94 | F92: 138 | G92: 365 | H92: 91 | I92: 88 | J92: 89 | K92: 89.33333333 | L92: 83 | M92: 84 | N92: 82 | O92: 92 | P92: 88 | Q92: 85.8 | R92: 185 | S92: 360.1333333 | T92: 725.1333333 | U92: 合格 | V92: 未录取
A93: 88 | B93: 刘健 | C93: 66 | D93: 62 | E93: 86 | F93: 127 | G93: 341 | H93: 85 | I93: 83 | J93: 84 | K93: 84 | L93: 80 | M93: 80 | N93: 82 | O93: 92 | P93: 89 | Q93: 84.6 | R93: 212 | S93: 380.6 | T93: 721.6 | U93: 合格 | V93: 未录取
A94: 89 | B94: 郭正好 | C94: 68 | D94: 57 | E94: 88 | F94: 131 | G94: 344 | H94: 84 | I94: 75 | J94: 76 | K94: 78.33333333 | L94: 85 | M94: 85 | N94: 88 | O94: 90 | P94: 90 | Q94: 87.6 | R94: 211 | S94: 376.9333333 | T94: 720.9333333 | U94: 合格 | V94: 未录取
A95: 90 | B95: 刘电鑫 | C95: 60 | D95: 79 | E95: 89 | F95: 139 | G95: 367 | H95: 91 | I95: 90 | J95: 90 | K95: 90.33333333 | L95: 90 | M95: 93 | N95: 90 | O95: 90 | P95: 90 | Q95: 90.6 | R95: 173 | S95: 353.9333333 | T95: 720.9333333 | U95: 合格 | V95: 未录取
A96: 91 | B96: 刘博 | C96: 66 | D96: 67 | E96: 90 | F96: 138 | G96: 361 | H96: 86 | I96: 86 | J96: 86 | K96: 86 | L96: 92 | M96: 92 | N96: 85 | O96: 92 | P96: 92 | Q96: 90.6 | R96: 183 | S96: 359.6 | T96: 720.6 | U96: 合格 | V96: 未录取
A97: 92 | B97: 文善贤 | C97: 62 | D97: 61 | E97: 97 | F97: 135 | G97: 355 | H97: 60 | I97: 78 | J97: 60 | K97: 66 | L97: 86 | M97: 85 | N97: 84 | O97: 82 | P97: 85 | Q97: 84.4 | R97: 215 | S97: 365.4 | T97: 720.4 | U97: 合格 | V97: 未录取
A98: 93 | B98: 李杰 | C98: 70 | D98: 76 | E98: 92 | F98: 133 | G98: 371 | H98: 83 | I98: 85 | J98: 84 | K98: 84 | L98: 85 | M98: 85 | N98: 85 | O98: 86 | P98: 85 | Q98: 85.2 | R98: 180 | S98: 349.2 | T98: 720.2 | U98: 合格 | V98: 未录取
A99: 94 | B99: 步寅振 | C99: 69 | D99: 72 | E99: 86 | F99: 130 | G99: 357 | H99: 83 | I99: 84 | J99: 82 | K99: 83 | L99: 85 | M99: 87 | N99: 83 | O99: 82 | P99: 82 | Q99: 83.8 | R99: 196 | S99: 362.8 | T99: 719.8 | U99: 合格 | V99: 未录取
A100: 95 | B100: 谭易成 | C100: 66 | D100: 77 | E100: 91 | F100: 129 | G100: 363 | H100: 83 | I100: 84 | J100: 83 | K100: 83.33333333 | L100: 86 | M100: 85 | N100: 89 | O100: 87 | P100: 85 | Q100: 86.4 | R100: 187 | S100: 356.7333333 | T100: 719.7333333 | U100: 合格 | V100: 未录取
A101: 96 | B101: 魏丽 | C101: 69 | D101: 60 | E101: 93 | F101: 135 | G101: 357 | H101: 73 | I101: 70 | J101: 75 | K101: 72.66666667 | L101: 80 | M101: 87 | N101: 80 | O101: 84 | P101: 88 | Q101: 83.8 | R101: 204 | S101: 360.4666667 | T101: 717.4666667 | U101: 合格 | V101: 未录取
A102: 97 | B102: 吴威 | C102: 77 | D102: 61 | E102: 84 | F102: 129 | G102: 351 | H102: 88 | I102: 86 | J102: 87 | K102: 87 | L102: 85 | M102: 86 | N102: 95 | O102: 95 | P102: 90 | Q102: 90.2 | R102: 185 | S102: 362.2 | T102: 713.2 | U102: 合格 | V102: 未录取
A103: 98 | B103: 姚鹏 | C103: 60 | D103: 84 | E103: 82 | F103: 130 | G103: 356 | H103: 93 | I103: 92 | J103: 94 | K103: 93 | L103: 94 | M103: 80 | N103: 92 | O103: 92 | P103: 92 | Q103: 90 | R103: 174 | S103: 357 | T103: 713 | U103: 合格 | V103: 未录取
A104: 99 | B104: 李畅 | C104: 61 | D104: 83 | E104: 79 | F104: 142 | G104: 365 | H104: 86 | I104: 83 | J104: 84 | K104: 84.33333333 | L104: 80 | M104: 87 | N104: 83 | O104: 82 | P104: 85 | Q104: 83.4 | R104: 180 | S104: 347.7333333 | T104: 712.7333333 | U104: 合格 | V104: 未录取
A105: 100 | B105: 蔡雨宸 | C105: 68 | D105: 82 | E105: 83 | F105: 112 | G105: 345 | H105: 92 | I105: 92 | J105: 90 | K105: 91.33333333 | L105: 87 | M105: 85 | N105: 85 | O105: 86 | P105: 80 | Q105: 84.6 | R105: 191 | S105: 366.9333333 | T105: 711.9333333 | U105: 合格 | V105: 未录取
A106: 101 | B106: 薛波涛 | C106: 64 | D106: 66 | E106: 88 | F106: 121 | G106: 339 | H106: 82 | I106: 85 | J106: 76 | K106: 81 | L106: 89 | M106: 86 | N106: 86 | O106: 85 | P106: 85 | Q106: 86.2 | R106: 204 | S106: 371.2 | T106: 710.2 | U106: 合格 | V106: 未录取
A107: 102 | B107: 蒋文 | C107: 62 | D107: 71 | E107: 97 | F107: 110 | G107: 340 | H107: 85 | I107: 87 | J107: 86 | K107: 86 | L107: 90 | M107: 88 | N107: 89 | O107: 90 | P107: 90 | Q107: 89.4 | R107: 194 | S107: 369.4 | T107: 709.4 | U107: 合格 | V107: 未录取
A108: 103 | B108: 舒康 | C108: 68 | D108: 74 | E108: 89 | F108: 119 | G108: 350 | H108: 93 | I108: 91 | J108: 92 | K108: 92 | L108: 90 | M108: 90 | N108: 86 | O108: 91 | P108: 91 | Q108: 89.6 | R108: 177 | S108: 358.6 | T108: 708.6 | U108: 合格 | V108: 未录取
A109: 104 | B109: 周亚林 | C109: 64 | D109: 54 | E109: 103 | F109: 134 | G109: 355 | H109: 79 | I109: 76 | J109: 78 | K109: 77.66666667 | L109: 83 | M109: 83 | N109: 85 | O109: 85 | P109: 88 | Q109: 84.8 | R109: 191 | S109: 353.4666667 | T109: 708.4666667 | U109: 合格 | V109: 未录取
A110: 105 | B110: 兰顺 | C110: 68 | D110: 73 | E110: 89 | F110: 126 | G110: 356 | H110: 90 | I110: 90 | J110: 88 | K110: 89.33333333 | L110: 90 | M110: 86 | N110: 84 | O110: 88 | P110: 85 | Q110: 86.6 | R110: 174 | S110: 349.9333333 | T110: 705.9333333 | U110: 合格 | V110: 未录取
A111: 106 | B111: 李锭 | C111: 65 | D111: 63 | E111: 91 | F111: 142 | G111: 361 | H111: 80 | I111: 85 | J111: 82 | K111: 82.33333333 | L111: 86 | M111: 84 | N111: 89 | O111: 84 | P111: 81 | Q111: 84.8 | R111: 172 | S111: 339.1333333 | T111: 700.1333333 | U111: 合格 | V111: 未录取
A112: 107 | B112: 赵强 | C112: 58 | D112: 79 | E112: 98 | F112: 144 | G112: 379 | H112: 70 | I112: 79 | J112: 60 | K112: 69.66666667 | L112: 92 | M112: 93 | N112: 90 | O112: 90 | P112: 90 | Q112: 91 | R112: 159 | S112: 319.6666667 | T112: 698.6666667 | U112: 合格 | V112: 未录取
A113: 108 | B113: 廖唐云 | C113: 68 | D113: 78 | E113: 93 | F113: 144 | G113: 383 | H113: 87 | I113: 88 | J113: 87 | K113: 87.33333333 | L113: 81 | M113: 82 | N113: 88 | O113: 87 | P113: 84 | Q113: 84.4 | R113: 143 | S113: 314.7333333 | T113: 697.7333333 | U113: 合格 | V113: 未录取
A114: 109 | B114: 禹军安 | C114: 66 | D114: 67 | E114: 83 | F114: 138 | G114: 354 | H114: 79 | I114: 80 | J114: 78 | K114: 79 | L114: 83 | M114: 84 | N114: 86 | O114: 87 | P114: 85 | Q114: 85 | R114: 174 | S114: 338 | T114: 692 | U114: 合格 | V114: 未录取
A115: 110 | B115: 杨勇 | C115: 64 | D115: 79 | E115: 91 | F115: 124 | G115: 358 | H115: 85 | I115: 86 | J115: 86 | K115: 85.66666667 | L115: 83 | M115: 86 | N115: 83 | O115: 84 | P115: 83 | Q115: 83.8 | R115: 163 | S115: 332.4666667 | T115: 690.4666667 | U115: 合格 | V115: 未录取
A116: 111 | B116: 陈达 | C116: 63 | D116: 65 | E116: 74 | F116: 124 | G116: 326 | H116: 80 | I116: 82 | J116: 83 | K116: 81.66666667 | L116: 87 | M116: 88 | N116: 90 | O116: 96 | P116: 95 | Q116: 91.2 | R116: 191 | S116: 363.8666667 | T116: 689.8666667 | U116: 合格 | V116: 未录取
A117: 112 | B117: 余文清 | C117: 61 | D117: 75 | E117: 97 | F117: 125 | G117: 358 | H117: 82 | I117: 82 | J117: 82 | K117: 82 | L117: 77 | M117: 79 | N117: 78 | O117: 90 | P117: 83 | Q117: 81.4 | R117: 168 | S117: 331.4 | T117: 689.4 | U117: 合格 | V117: 未录取
A118: 113 | B118: 罗佳文 | C118: 66 | D118: 70 | E118: 95 | F118: 132 | G118: 363 | H118: 84 | I118: 80 | J118: 82 | K118: 82 | L118: 80 | M118: 75 | N118: 75 | O118: 75 | P118: 80 | Q118: 77 | R118: 164 | S118: 323 | T118: 686 | U118: 合格 | V118: 未录取
A119: 114 | B119: 林星 | C119: 72 | D119: 79 | E119: 74 | F119: 133 | G119: 358 | H119: 91 | I119: 86 | J119: 89 | K119: 88.66666667 | L119: 90 | M119: 90 | N119: 90 | O119: 90 | P119: 92 | Q119: 90.4 | R119: 148 | S119: 327.0666667 | T119: 685.0666667 | U119: 合格 | V119: 未录取
A120: 115 | B120: 邹雪莲 | C120: 62 | D120: 73 | E120: 73 | F120: 132 | G120: 340 | H120: 89 | I120: 89 | J120: 89 | K120: 89 | L120: 88 | M120: 88 | N120: 85 | O120: 90 | P120: 92 | Q120: 88.6 | R120: 162 | S120: 339.6 | T120: 679.6 | U120: 合格 | V120: 未录取
A121: 116 | B121: 杨青 | C121: 54 | D121: 57 | E121: 90 | F121: 126 | G121: 327 | H121: 85 | I121: 84 | J121: 85 | K121: 84.66666667 | L121: 89 | M121: 90 | N121: 90 | O121: 89 | P121: 88 | Q121: 89.2 | R121: 175 | S121: 348.8666667 | T121: 675.8666667 | U121: 合格 | V121: 未录取
A122: 117 | B122: 张健 | C122: 59 | D122: 78 | E122: 96 | F122: 117 | G122: 350 | H122: 88 | I122: 87 | J122: 86 | K122: 87 | L122: 93 | M122: 92 | N122: 92 | O122: 91 | P122: 93 | Q122: 92.2 | R122: 146 | S122: 325.2 | T122: 675.2 | U122: 合格 | V122: 未录取
A123: 118 | B123: 阮利超 | C123: 71 | D123: 75 | E123: 77 | F123: 118 | G123: 341 | H123: 81 | I123: 84 | J123: 82 | K123: 82.33333333 | L123: 90 | M123: 91 | N123: 90 | O123: 90 | P123: 90 | Q123: 90.2 | R123: 157 | S123: 329.5333333 | T123: 670.5333333 | U123: 合格 | V123: 未录取
A124: 119 | B124: 刘泽程 | C124: 67 | D124: 73 | E124: 90 | F124: 127 | G124: 357 | H124: 85 | I124: 80 | J124: 82 | K124: 82.33333333 | L124: 90 | M124: 89 | N124: 90 | O124: 90 | P124: 90 | Q124: 89.8 | R124: 140 | S124: 312.1333333 | T124: 669.1333333 | U124: 合格 | V124: 未录取
A125: 120 | B125: 黄权威 | C125: 66 | D125: 76 | E125: 100 | F125: 125 | G125: 367 | H125: 83 | I125: 84 | J125: 80 | K125: 82.33333333 | L125: 90 | M125: 88 | N125: 90 | O125: 90 | P125: 92 | Q125: 90 | R125: 128 | S125: 300.3333333 | T125: 667.3333333 | U125: 合格 | V125: 未录取
A126: 121 | B126: 黄宽 | C126: 59 | D126: 68 | E126: 79 | F126: 121 | G126: 327 | H126: 82 | I126: 82 | J126: 83 | K126: 82.33333333 | L126: 85 | M126: 80 | N126: 82 | O126: 83 | P126: 86 | Q126: 83.2 | R126: 173 | S126: 338.5333333 | T126: 665.5333333 | U126: 合格 | V126: 未录取
A127: 122 | B127: 毕通通 | C127: 68 | D127: 77 | E127: 93 | F127: 122 | G127: 360 | H127: 79 | I127: 77 | J127: 77 | K127: 77.66666667 | L127: 85 | M127: 85 | N127: 80 | O127: 88 | P127: 85 | Q127: 84.6 | R127: 139 | S127: 301.2666667 | T127: 661.2666667 | U127: 合格 | V127: 未录取
A128: 123 | B128: 胡金钊 | C128: 65 | D128: 60 | E128: 88 | F128: 143 | G128: 356 | H128: 84 | I128: 80 | J128: 80 | K128: 81.33333333 | L128: 85 | M128: 87 | N128: 86 | O128: 93 | P128: 89 | Q128: 88 | R128: 135 | S128: 304.3333333 | T128: 660.3333333 | U128: 合格 | V128: 未录取
A129: 124 | B129: 龙鸣鸿 | C129: 64 | D129: 59 | E129: 85 | F129: 127 | G129: 335 | H129: 87 | I129: 86 | J129: 85 | K129: 86 | L129: 77 | M129: 78 | N129: 80 | O129: 94 | P129: 92 | Q129: 84.2 | R129: 154 | S129: 324.2 | T129: 659.2 | U129: 合格 | V129: 未录取
A130: 125 | B130: 唐赛 | C130: 62 | D130: 68 | E130: 102 | F130: 131 | G130: 363 | H130: 90 | I130: 89 | J130: 89 | K130: 89.33333333 | L130: 75 | M130: 80 | N130: 80 | O130: 79 | P130: 80 | Q130: 78.8 | R130: 124 | S130: 292.1333333 | T130: 655.1333333 | U130: 合格 | V130: 未录取
A131: 126 | B131: 罗浩宇 | C131: 65 | D131: 79 | E131: 108 | F131: 109 | G131: 361 | H131: 92 | I131: 93 | J131: 88 | K131: 91 | L131: 93 | M131: 92 | N131: 92 | O131: 92 | P131: 92 | Q131: 92.2 | R131: 103 | S131: 286.2 | T131: 647.2 | U131: 合格 | V131: 未录取
A132: 127 | B132: 肖宁建 | C132: 67 | D132: 54 | E132: 87 | F132: 130 | G132: 338 | H132: 70 | I132: 75 | J132: 78 | K132: 74.33333333 | L132: 80 | M132: 80 | N132: 81 | O132: 80 | P132: 80 | Q132: 80.2 | R132: 154 | S132: 308.5333333 | T132: 646.5333333 | U132: 合格 | V132: 未录取
A133: 128 | B133: 杨泽宇 | C133: 65 | D133: 68 | E133: 79 | F133: 124 | G133: 336 | H133: 89 | I133: 87 | J133: 84 | K133: 86.66666667 | L133: 87 | M133: 86 | N133: 87 | O133: 88 | P133: 90 | Q133: 87.6 | R133: 136 | S133: 310.2666667 | T133: 646.2666667 | U133: 合格 | V133: 未录取
A134: 129 | B134: 李壮壮 | C134: 61 | D134: 71 | E134: 74 | F134: 120 | G134: 326 | H134: 88 | I134: 90 | J134: 88 | K134: 88.66666667 | L134: 91 | M134: 90 | N134: 90 | O134: 90 | P134: 90 | Q134: 90.2 | R134: 139 | S134: 317.8666667 | T134: 643.8666667 | U134: 合格 | V134: 未录取
A135: 130 | B135: 张咏琳 | C135: 75 | D135: 70 | E135: 74 | F135: 122 | G135: 341 | H135: 80 | I135: 80 | J135: 80 | K135: 80 | L135: 86 | M135: 85 | N135: 83 | O135: 85 | P135: 82 | Q135: 84.2 | R135: 127 | S135: 291.2 | T135: 632.2 | U135: 合格 | V135: 未录取
A136: 131 | B136: 陈枝锋 | C136: 68 | D136: 80 | E136: 80 | F136: 123 | G136: 351 | H136: 83 | I136: 80 | J136: 80 | K136: 81 | L136: 78 | M136: 80 | N136: 80 | O136: 92 | P136: 85 | Q136: 83 | R136: 116 | S136: 280 | T136: 631 | U136: 合格 | V136: 未录取
A137: 132 | B137: 王华 | C137: 70 | D137: 65 | E137: 72 | F137: 125 | G137: 332 | H137: 78 | I137: 78 | J137: 79 | K137: 78.33333333 | L137: 80 | M137: 83 | N137: 88 | O137: 89 | P137: 86 | Q137: 85.2 | R137: 128 | S137: 291.5333333 | T137: 623.5333333 | U137: 合格 | V137: 未录取
A138: 133 | B138: 邓云 | C138: 69 | D138: 68 | E138: 92 | F138: 122 | G138: 351 | H138: 92 | I138: 90 | J138: 94 | K138: 92 | L138: 86 | M138: 85 | N138: 85 | O138: 84 | P138: 88 | Q138: 85.6 | R138: 94 | S138: 271.6 | T138: 622.6 | U138: 合格 | V138: 未录取
A139: 134 | B139: 肖遥 | C139: 67 | D139: 69 | E139: 88 | F139: 97 | G139: 321 | H139: 86 | I139: 86 | J139: 85 | K139: 85.66666667 | L139: 86 | M139: 85 | N139: 81 | O139: 83 | P139: 81 | Q139: 83.2 | R139: 128 | S139: 296.8666667 | T139: 617.8666667 | U139: 合格 | V139: 未录取
A140: 135 | B140: 崔瑜源 | C140: 68 | D140: 73 | E140: 95 | F140: 126 | G140: 362 | H140: 79 | I140: 77 | J140: 78 | K140: 78 | L140: 88 | M140: 87 | N140: 84 | O140: 85 | P140: 85 | Q140: 85.8 | R140: 89 | S140: 252.8 | T140: 614.8 | U140: 合格 | V140: 未录取
A141: 136 | B141: 吴争邦 | C141: 64 | D141: 52 | E141: 94 | F141: 126 | G141: 336 | H141: 58 | I141: 60 | J141: 65 | K141: 61 | L141: 80 | M141: 80 | N141: 85 | O141: 79 | P141: 75 | Q141: 79.8 | R141: 125 | S141: 265.8 | T141: 601.8 | U141: 合格 | V141: 未录取
A142: 137 | B142: 任邹弘 | C142: 70 | D142: 70 | E142: 81 | F142: 88 | G142: 309 | H142: 77 | I142: 76 | J142: 80 | K142: 77.66666667 | L142: 89 | M142: 90 | N142: 86 | O142: 89 | P142: 85 | Q142: 87.8 | R142: 122 | S142: 287.4666667 | T142: 596.4666667 | U142: 合格 | V142: 未录取
A143: 138 | B143: 张轲忱 | C143: 61 | D143: 69 | E143: 76 | F143: 103 | G143: 309 | H143: 86 | I143: 86 | J143: 85 | K143: 85.66666667 | L143: 84 | M143: 85 | N143: 83 | O143: 82 | P143: 84 | Q143: 83.6 | R143: 110 | S143: 279.2666667 | T143: 588.2666667 | U143: 合格 | V143: 未录取
A144: 139 | B144: 韩家洛 | C144: 59 | D144: 61 | E144: 79 | F144: 120 | G144: 319 | H144: 75 | I144: 76 | J144: 75 | K144: 75.33333333 | L144: 88 | M144: 90 | N144: 85 | O144: 87 | P144: 90 | Q144: 88 | R144: 100 | S144: 263.3333333 | T144: 582.3333333 | U144: 合格 | V144: 未录取
A145: 140 | B145: 程志勇 | C145: 68 | D145: 82 | E145: 70 | F145: 113 | G145: 333 | H145: 87 | I145: 93 | J145: 88 | K145: 89.33333333 | L145: 85 | M145: 86 | N145: 84 | O145: 83 | P145: 85 | Q145: 84.6 | R145: 58 | S145: 231.9333333 | T145: 564.9333333 | U145: 合格 | V145: 未录取
A146: 141 | B146: 张俊文 | C146: 60 | D146: 58 | E146: 85 | F146: 110 | G146: 313 | H146: 75 | I146: 78 | J146: 76 | K146: 76.33333333 | L146: 75 | M146: 75 | N146: 80 | O146: 78 | P146: 78 | Q146: 77.2 | R146: 53 | S146: 206.5333333 | T146: 519.5333333 | U146: 合格 | V146: 未录取
A147: 142 | B147: 王州辉 | C147: 63 | D147: 65 | E147: 75 | F147: 120 | G147: 323 | V147: 放弃
A148: 143 | B148: 匡金伟 | C148: 58 | D148: 54 | E148: 93 | F148: 102 | G148: 307 | V148: 放弃
A149: 144 | B149: 蒲幸禹 | C149: 58 | D149: 62 | E149: 78 | F149: 114 | G149: 312 | V149: 放弃
A150: 145 | B150: 范国超 | C150: 64 | D150: 56 | E150: 75 | F150: 119 | G150: 314 | V150: 放弃
A151: 146 | B151: 潘文见 | C151: 55 | D151: 67 | E151: 95 | F151: 105 | G151: 322 | V151: 放弃
A152: 147 | B152: 夏子阳 | C152: 55 | D152: 54 | E152: 83 | F152: 131 | G152: 323 | V152: 放弃
A153: 148 | B153: 王昭文 | C153: 66 | D153: 74 | E153: 75 | F153: 113 | G153: 328 | V153: 放弃
A154: 149 | B154: 朱盟盟 | C154: 61 | D154: 68 | E154: 70 | F154: 130 | G154: 329 | V154: 放弃
A155: 150 | B155: 龙奕君 | C155: 62 | D155: 67 | E155: 78 | F155: 125 | G155: 332 | V155: 放弃
A156: 151 | B156: 郭晓辉 | C156: 61 | D156: 62 | E156: 82 | F156: 127 | G156: 332 | V156: 放弃
A157: 152 | B157: 陈明达 | C157: 64 | D157: 78 | E157: 71 | F157: 120 | G157: 333 | V157: 放弃
A158: 153 | B158: 罗杰元 | C158: 72 | D158: 67 | E158: 76 | F158: 122 | G158: 337 | V158: 放弃
A159: 154 | B159: 周聪 | C159: 68 | D159: 62 | E159: 82 | F159: 132 | G159: 344 | V159: 放弃
A160: 155 | B160: 何小龙 | C160: 62 | D160: 67 | E160: 83 | F160: 133 | G160: 345 | V160: 放弃
A161: 156 | B161: 孙春生 | C161: 65 | D161: 66 | E161: 102 | F161: 113 | G161: 346 | V161: 放弃
A162: 157 | B162: 薛宏宇 | C162: 66 | D162: 73 | E162: 87 | F162: 126 | G162: 352 | V162: 放弃
A163: 158 | B163: 左丁丁 | C163: 72 | D163: 76 | E163: 96 | F163: 128 | G163: 372 | V163: 放弃

Sheet Sheet2

Sheet Sheet3
